lending/lending_fUSD_20250509
["ID","MTS","AMOUNT","RATE_DAILY","PERIOD"]
[360337487,1746750647979,-400.0,0.00019875,2]
[360337488,1746750647989,-400.0,0.00019875,2]
[360337489,1746750648000,-400.0,0.00019875,2]
[360337490,1746750648012,-400.0,0.00019875,2]
[360337491,1746750648022,-536.49347898,0.00019875,2]
[360337492,1746750648032,-400.0,0.00019875,2]
[360337493,1746750648043,-400.0,0.00019875,2]
[360337494,1746750648053,-400.0,0.00019875,2]
[360337495,1746750648063,-400.0,0.00019875,2]
[360337496,1746750648073,-400.0,0.00019875,2]
[360337497,1746750648084,-418.98,0.00019875,2]
[360337498,1746750648097,-400.0,0.00019875,2]
[360337499,1746750648107,-400.0,0.00019875,2]
[360337500,1746750648118,-400.0,0.00019875,2]
[360337501,1746750648129,-400.0,0.00019875,2]
[360337502,1746750648141,-400.0,0.00019875,2]
[360337503,1746750648151,-400.0,0.00019875,2]
[360337504,1746750648161,-400.0,0.00019875,2]
[360337505,1746750648172,-542.08841432,0.00019875,2]
[360337506,1746750648182,-400.0,0.00019875,2]
[360337507,1746750648192,-400.0,0.00019875,2]
[360337508,1746750648201,-400.0,0.00019875,2]
[360337509,1746750648211,-400.0,0.00019875,2]
[360337510,1746750648220,-400.0,0.00019875,2]
[360337511,1746750648230,-400.0,0.00019875,2]
[360337512,1746750648240,-400.0,0.00019875,2]
[360337513,1746750648249,-400.0,0.00019875,2]
[360337514,1746750648261,-611.41,0.00019875,2]
[360337515,1746750648271,-400.0,0.00019875,2]
[360337516,1746750648282,-400.0,0.00019875,2]
[360337517,1746750648292,-400.0,0.00019875,2]
[360337518,1746750648301,-400.0,0.00019875,2]
[360337519,1746750648311,-400.0,0.00019875,2]
[360337520,1746750648321,-400.0,0.00019875,2]
[360337521,1746750648330,-439.62,0.00019875,2]
[360337522,1746750648339,-400.0,0.00019875,2]
[360337523,1746750648348,-400.0,0.00019875,2]
[360337524,1746750648358,-400.0,0.00019875,2]
[360337525,1746750648367,-400.0,0.00019875,2]
[360337526,1746750648377,-400.0,0.00019875,2]
[360337527,1746750648388,-400.0,0.00019875,2]
[360337528,1746750648397,-16.7704505,0.00019875,2]
[360337529,1746750649083,-493.9807161,0.00019875,2]
[360337530,1746750649093,-400.0,0.00019875,2]
[360337531,1746750649102,-512.62186765,0.00019875,2]
[360337532,1746750649111,-450.0,0.00019875,2]
[360337533,1746750649120,-400.0,0.00019875,2]
[360337534,1746750649129,-400.0,0.00019875,2]
[360337535,1746750649139,-400.0,0.00019875,2]
[360337536,1746750649149,-400.0,0.00019875,2]
[360337537,1746750649158,-400.0,0.00019875,2]
[360337538,1746750649168,-400.0,0.00019875,2]
[360337539,1746750649177,-400.0,0.00019875,2]
[360337540,1746750649186,-400.0,0.00019875,2]
[360337541,1746750649196,-400.0,0.00019875,2]
[360337542,1746750649205,-400.0,0.00019875,2]
[360337543,1746750649215,-400.0,0.00019875,2]
[360337544,1746750649224,-400.0,0.00019875,2]
[360337545,1746750649234,-400.0,0.00019875,2]
[360337546,1746750649243,-400.0,0.00019875,2]
[360337547,1746750649253,-400.0,0.00019875,2]
[360337548,1746750649262,-520.33501792,0.00019875,2]
[360337549,1746750649272,-400.0,0.00019875,2]
[360337550,1746750649282,-533.66,0.00019875,2]
[360337551,1746750649291,-400.0,0.00019875,2]
[360337552,1746750649300,-400.0,0.00019875,2]
[360337553,1746750649309,-400.0,0.00019875,2]
[360337554,1746750649319,-400.0,0.00019875,2]
[360337555,1746750649328,-50.24650663,0.00019875,2]
[360337560,1746750858869,901.79,0.00030137,120]
[360337561,1746750877722,650.0,0.00030136,120]
[360337563,1746750890113,1000.0,0.0003,30]
[360337564,1746750892081,416918.0,0.00030137,120]
[360337565,1746750895010,500.0,0.0003013,120]
[360337566,1746750932988,1195.73,0.00018845,2]
[360337567,1746750938003,1195.73,0.00025912,120]
[360337568,1746750938158,1195.73,0.00028268,120]
[360337569,1746750940432,155.06,0.00018845,2]
[360337570,1746750971232,1000.0,0.0003,36]
[360337571,1746750975436,1089.06,0.00016928,2]
[360337572,1746750975641,1089.06,0.00019192,2]
[360337573,1746750997450,150.0,0.00018848,2]
[360337574,1746751020371,2181.71,0.00018858,2]
[360337575,1746751067979,150.0,0.00018986,7]
[360337576,1746751082078,3282.77464219,0.0003,30]
[360337577,1746751102319,1000.0,0.00018824,2]
[360337580,1746751321252,252.41,0.00018749,2]
[360337583,1746751398162,166.01,0.00019309,2]
[360337584,1746751453444,326.24685003,0.00019358,2]
[360337585,1746751463733,300.0,0.000192,7]
[360337586,1746751465857,600.0,0.000193,7]
[360337587,1746751467919,900.0,0.000194,7]
[360337588,1746751470320,1200.0,0.000195,7]
[360337590,1746751582666,187.64,0.00018742,2]
[360337591,1746751582879,187.64,0.00018836,2]
[360337595,1746751603436,195.0,0.0003,30]
[360337597,1746751617148,195.0,0.000195,2]
[360337598,1746751627551,188.70466953,0.00019499,2]
[360337601,1746751637288,178.22,0.00014991,2]
[360337602,1746751643461,195.0,0.000195,2]
[360337605,1746751674132,2523.7,0.00030137,120]
[360337607,1746751695559,600.0,0.0003,30]
[360337613,1746751798856,159.65317865,0.000195,2]
[360337617,1746751808018,177.95,0.00018728,2]
[360337623,1746751832208,-151.0,0.00019563,2]
[360337624,1746751832218,-154.16,0.00019574,2]
[360337625,1746751832228,-152.24300464,0.0001958,2]
[360337626,1746751832238,-154.13,0.00019587,2]
[360337627,1746751832248,-244.30643552,0.00019599,2]
[360337628,1746751832382,-605.69356448,0.00019599,2]
[360337629,1746751832392,-1200.0,0.00019599,2]
[360337630,1746751832401,-300.0,0.00019599,2]
[360337631,1746751832411,-1000.0,0.000196,2]
[360337632,1746751832421,-170.31055488,0.000196,2]
[360337633,1746751832430,-23323.06997683,0.000196,2]
[360337634,1746751832440,-188.70466952,0.000196,2]
[360337635,1746751832449,-151.0,0.00019661,2]
[360337636,1746751832460,-151.0,0.00019661,2]
[360337637,1746751832469,-151.0,0.00019661,2]
[360337638,1746751832479,-155.0,0.00019661,2]
[360337639,1746751832489,-151.0,0.00019661,2]
[360337640,1746751832499,-668.65185757,0.00019661,2]
[360337641,1746751832509,-207.4,0.00019661,2]
[360337642,1746751832518,-293.718,0.00019663,2]
[360337643,1746751832528,-154.13,0.00019663,2]
[360337644,1746751832538,-10826.12565243,0.00019664,2]
[360337645,1746751832548,-5853.3832,0.00019672,2]
[360337646,1746751832559,-1310.5371,0.00019673,2]
[360337647,1746751832569,-1469.3792,0.00019673,2]
[360337648,1746751832579,-3285.9991,0.00019673,2]
[360337649,1746751832588,-169.0254,0.00019673,2]
[360337650,1746751832597,-6991.1848,0.00019673,2]
[360337651,1746751832606,-579.4307,0.00019673,2]
[360337652,1746751832615,-2500.0,0.00019673,2]
[360337653,1746751832625,-5578.53634454,0.00019673,2]
[360337654,1746751832634,-507.0595,0.00019674,2]
[360337655,1746751832643,-1000.0,0.00019674,2]
[360337657,1746751832653,-158.7647642,0.00019675,2]
[360337659,1746751832662,-2313.14037205,0.00019678,2]
[360337661,1746751832671,-5578.53634448,0.00019684,2]
[360337663,1746751832680,-158.76476419,0.00019689,2]
[360337665,1746751832689,-5578.53634448,0.00019695,2]
[360337667,1746751832698,-308.26,0.000197,2]
[360337670,1746751832707,-158.76476419,0.00019703,2]
[360337673,1746751832716,-5578.53634448,0.00019706,2]
[360337676,1746751832725,-158.76476419,0.00019717,2]
[360337679,1746751832734,-5578.53634448,0.00019717,2]
[360337682,1746751832743,-248.97218745,0.00019728,2]
[360337685,1746751832752,-5578.53634448,0.00019729,2]
[360337688,1746751832761,-1000.0,0.00019734,2]
[360337691,1746751832770,-5578.53634448,0.0001974,2]
[360337694,1746751832779,-5578.53634448,0.00019751,2]
[360337696,1746751832787,-5578.53634448,0.00019762,2]
[360337698,1746751832796,-154.33,0.00019763,2]
[360337700,1746751832806,-154.33,0.00019763,2]
[360337702,1746751832814,-1426.34,0.00019763,2]
[360337703,1746751832823,-164.0071995,0.00019771,2]
[360337704,1746751832833,-702.96233104,0.00019771,2]
[360337705,1746751832842,-3556.12817589,0.00019771,2]
[360337706,1746751832851,-3556.12817582,0.00019771,2]
[360337707,1746751832859,-3556.12817582,0.00019771,2]
[360337708,1746751832869,-702.96233104,0.00019772,2]
[360337709,1746751832879,-3556.12817582,0.00019772,2]
[360337710,1746751832889,-3556.12817582,0.00019772,2]
[360337711,1746751832898,-702.96233104,0.00019772,2]
[360337712,1746751832909,-3556.12817582,0.00019772,2]
[360337713,1746751832918,-3556.12817582,0.00019772,2]
[360337714,1746751832927,-3556.12817582,0.00019773,2]
[360337715,1746751832937,-3556.12817582,0.00019773,2]
[360337716,1746751832946,-42523.22267224,0.00019773,2]
[360337719,1746751838290,-158.76476419,0.00019732,2]
[360337720,1746751838299,-1241.66003289,0.00019773,2]
[360337721,1746751838330,-11254.18154825,0.00019773,2]
[360337722,1746751838439,-1225.57272596,0.00019773,2]
[360337723,1746751838450,-2172.528378,0.00019773,2]
[360337724,1746751838462,-2052.2052,0.00019773,2]
[360337725,1746751838474,-2063.57616,0.00019773,2]
[360337726,1746751838485,-1804.22,0.00019773,2]
[360337727,1746751838496,-681.89753604,0.00019773,2]
[360337739,1746751838852,-76256.70764662,0.00019773,2]
[360337740,1746751838862,-406.9346,0.00019773,2]
[360337741,1746751838872,-225.0,0.00019773,2]
[360337742,1746751838881,-400.0,0.00019773,2]
[360337743,1746751838891,-233.16042521,0.00019773,2]
[360337744,1746751838900,-400.0,0.00019773,2]
[360337745,1746751838909,-400.0,0.00019773,2]
[360337746,1746751838919,-400.0,0.00019773,2]
[360337747,1746751838929,-400.0,0.00019773,2]
[360337748,1746751838938,-400.0,0.00019773,2]
[360337749,1746751838948,-400.0,0.00019773,2]
[360337750,1746751838957,-805.44,0.00019773,2]
[360337751,1746751838966,-400.0,0.00019773,2]
[360337752,1746751838975,-400.0,0.00019773,2]
[360337753,1746751838985,-400.0,0.00019773,2]
[360337754,1746751838994,-400.0,0.00019773,2]
[360337755,1746751839003,-1182.28,0.00019773,2]
[360337756,1746751839012,-400.0,0.00019773,2]
[360337757,1746751839021,-1302.78,0.00019773,2]
[360337758,1746751839030,-400.0,0.00019773,2]
[360337759,1746751839040,-696.77,0.00019773,2]
[360337760,1746751839050,-194.71473548,0.00019773,2]
[360337761,1746751839060,-400.0,0.00019773,2]
[360337762,1746751839069,-1433.24,0.00019773,2]
[360337763,1746751839078,-400.0,0.00019773,2]
[360337764,1746751839089,-530.52,0.00019773,2]
[360337765,1746751839100,-400.0,0.00019773,2]
[360337766,1746751839111,-1512.84,0.00019773,2]
[360337767,1746751839120,-521.59908179,0.00019773,2]
[360337768,1746751839131,-334.0832064,0.00019773,2]
[360337769,1746751839140,-400.0,0.00019773,2]
[360337770,1746751839149,-213.2975765,0.00019773,2]
[360337771,1746751839159,-400.0,0.00019773,2]
[360337772,1746751839170,-1394.35,0.00019773,2]
[360337773,1746751839179,-506.50589877,0.00019773,2]
[360337774,1746751839188,-365.9897526,0.00019773,2]
[360337775,1746751839199,-400.0,0.00019773,2]
[360337776,1746751839208,-400.0,0.00019773,2]
[360337777,1746751839219,-400.0,0.00019773,2]
[360337778,1746751839230,-400.0,0.00019773,2]
[360337779,1746751839239,-1545.22,0.00019773,2]
[360337780,1746751839249,-400.0,0.00019773,2]
[360337781,1746751839258,-892.89,0.00019773,2]
[360337782,1746751839267,-884.27,0.00019773,2]
[360337783,1746751839277,-150.8842483,0.00019773,2]
[360337784,1746751839286,-400.0,0.00019773,2]
[360337785,1746751839296,-1087.02,0.00019773,2]
[360337786,1746751839308,-400.0,0.00019773,2]
[360337787,1746751839318,-400.0,0.00019773,2]
[360337788,1746751839327,-4810.14,0.00019773,2]
[360337789,1746751839337,-400.0,0.00019773,2]
[360337790,1746751839348,-2224.87,0.00019773,2]
[360337791,1746751839358,-504.28326547,0.00019773,2]
[360337792,1746751839368,-531.9,0.00019773,2]
[360337793,1746751839379,-400.0,0.00019773,2]
[360337794,1746751839389,-400.0,0.00019773,2]
[360337795,1746751839398,-400.0,0.00019773,2]
[360337796,1746751839407,-600.19,0.00019773,2]
[360337797,1746751839417,-400.0,0.00019773,2]
[360337798,1746751839427,-835.71,0.00019773,2]
[360337799,1746751839436,-500.61178287,0.00019773,2]
[360337800,1746751839447,-224.92194487,0.00019773,2]
[360337801,1746751839456,-400.0,0.00019773,2]
[360337802,1746751839467,-400.0,0.00019773,2]
[360337803,1746751839476,-1139.18,0.00019773,2]
[360337804,1746751839486,-400.0,0.00019773,2]
[360337805,1746751839495,-5578.53634448,0.00019773,2]
[360337806,1746751839505,-1035.18,0.00019773,2]
[360337807,1746751839514,-1292.23,0.00019773,2]
[360337808,1746751839523,-400.0,0.00019773,2]
[360337809,1746751839534,-400.0,0.00019773,2]
[360337810,1746751839543,-400.0,0.00019773,2]
[360337811,1746751839553,-239.49020424,0.00019773,2]
[360337812,1746751839562,-400.0,0.00019773,2]
[360337813,1746751839572,-1264.5,0.00019773,2]
[360337814,1746751839581,-477.726195,0.00019773,2]
[360337815,1746751839590,-694.14,0.00019773,2]
[360337816,1746751839599,-400.0,0.00019773,2]
[360337817,1746751839609,-474.19,0.00019773,2]
[360337818,1746751839619,-570.1,0.00019773,2]
[360337819,1746751839628,-400.0,0.00019773,2]
[360337820,1746751839637,-3556.12817582,0.00019773,2]
[360337821,1746751839647,-400.0,0.00019773,2]
[360337822,1746751839658,-164.0071995,0.00019773,2]
[360337823,1746751839668,-200.0,0.00019773,2]
[360337824,1746751839677,-200.0,0.00019773,2]
[360337825,1746751839687,-500.0,0.00019774,2]
[360337826,1746751839698,-22293.6583,0.00019774,2]
[360337827,1746751839707,-164.0071995,0.00019775,2]
[360337828,1746751839717,-150.0,0.00019776,2]
[360337829,1746751839726,-164.0071995,0.00019777,2]
[360337830,1746751839735,-164.0071995,0.0001978,2]
[360337831,1746751839745,-164.0071995,0.00019782,2]
[360337832,1746751839754,-164.0071995,0.00019784,2]
[360337833,1746751839763,-164.0071995,0.00019786,2]
[360337834,1746751839772,-164.0071995,0.00019788,2]
[360337835,1746751839782,-1000.0,0.000198,2]
[360337836,1746751839791,-1000.0,0.00019819,2]
[360337837,1746751839800,-154.33,0.00019861,2]
[360337838,1746751839809,-1426.34,0.00019861,2]
[360337839,1746751839818,-500.0,0.0001987,2]
[360337840,1746751839828,-500.0,0.0001987,2]
[360337841,1746751839837,-191.8720556,0.0001987,2]
[360337842,1746751839847,-500.0,0.0001987,2]
[360337843,1746751839856,-500.0,0.0001987,2]
[360337844,1746751839865,-517.57781707,0.0001987,2]
[360337845,1746751839875,-500.0,0.0001987,2]
[360337846,1746751839884,-264.06157427,0.0001987,2]
[360337847,1746751839894,-500.0,0.0001987,2]
[360337848,1746751839904,-500.0,0.0001987,2]
[360337849,1746751839913,-500.0,0.0001987,2]
[360337850,1746751839922,-559.10459164,0.0001987,2]
[360337851,1746751839932,-517.57781707,0.0001987,2]
[360337852,1746751839941,-236.8497644,0.0001987,2]
[360337853,1746751839950,-500.0,0.0001987,2]
[360337854,1746751839959,-500.0,0.0001987,2]
[360337855,1746751839969,-517.57781707,0.0001987,2]
[360337856,1746751839978,-601.36260459,0.0001987,2]
[360337857,1746751839987,-500.0,0.0001987,2]
[360337858,1746751839997,-500.0,0.0001987,2]
[360337859,1746751840007,-517.57781707,0.0001987,2]
[360337861,1746751840016,-500.0,0.0001987,2]
[360337862,1746751840025,-500.0,0.0001987,2]
[360337863,1746751840035,-500.0,0.0001987,2]
[360337864,1746751840044,-517.57781707,0.0001987,2]
[360337865,1746751840053,-517.57781707,0.0001987,2]
[360337866,1746751840063,-500.0,0.0001987,2]
[360337867,1746751840072,-500.0,0.0001987,2]
[360337868,1746751840081,-517.57781707,0.0001987,2]
[360337869,1746751840091,-500.0,0.0001987,2]
[360337870,1746751840100,-517.57781707,0.0001987,2]
[360337871,1746751840109,-500.0,0.0001987,2]
[360337872,1746751840119,-517.57781707,0.0001987,2]
[360337873,1746751840129,-517.57781707,0.0001987,2]
[360337874,1746751840139,-517.57781707,0.0001987,2]
[360337875,1746751840149,-517.57781707,0.0001987,2]
[360337876,1746751840158,-517.57781707,0.0001987,2]
[360337877,1746751840168,-517.57781707,0.0001987,2]
[360337878,1746751840178,-517.57781707,0.0001987,2]
[360337879,1746751840187,-517.57781707,0.0001987,2]
[360337880,1746751840197,-517.57781707,0.0001987,2]
[360337881,1746751840207,-517.57781707,0.0001987,2]
[360337882,1746751840217,-517.57781707,0.0001987,2]
[360337883,1746751840226,-517.57781707,0.0001987,2]
[360337884,1746751840235,-517.57781707,0.0001987,2]
[360337885,1746751840245,-517.57781707,0.0001987,2]
[360337886,1746751840254,-517.57781707,0.0001987,2]
[360337887,1746751840264,-517.57781707,0.0001987,2]
[360337888,1746751840274,-517.57781707,0.0001987,2]
[360337889,1746751840284,-517.57781707,0.0001987,2]
[360337890,1746751840294,-517.57781707,0.0001987,2]
[360337891,1746751840303,-517.57781707,0.0001987,2]
[360337892,1746751840313,-517.57781707,0.0001987,2]
[360337893,1746751840322,-517.57781707,0.0001987,2]
[360337894,1746751840332,-517.57781707,0.0001987,2]
[360337895,1746751840343,-517.57781707,0.0001987,2]
[360337896,1746751840352,-517.57781707,0.0001987,2]
[360337897,1746751840362,-517.57781707,0.0001987,2]
[360337898,1746751840371,-517.57781707,0.0001987,2]
[360337899,1746751840381,-517.57781707,0.0001987,2]
[360337900,1746751840394,-517.57781707,0.0001987,2]
[360337901,1746751840404,-517.57781707,0.0001987,2]
[360337902,1746751840413,-517.57781707,0.0001987,2]
[360337903,1746751840423,-517.57781707,0.0001987,2]
[360337904,1746751840434,-517.57781707,0.0001987,2]
[360337905,1746751840444,-517.57781707,0.0001987,2]
[360337906,1746751840453,-517.57781707,0.0001987,2]
[360337907,1746751840464,-517.57781707,0.0001987,2]
[360337908,1746751840473,-517.57781707,0.0001987,2]
[360337909,1746751840483,-917.54394476,0.0001987,2]
[360337910,1746751840492,-917.54394476,0.0001987,2]
[360337911,1746751840502,-917.54394476,0.0001987,2]
[360337912,1746751840512,-917.54394476,0.0001987,2]
[360337913,1746751840521,-917.54394476,0.0001987,2]
[360337914,1746751840531,-917.54394476,0.0001987,2]
[360337915,1746751840541,-917.54394476,0.0001987,2]
[360337916,1746751840549,-917.54394476,0.0001987,2]
[360337917,1746751840558,-917.54394476,0.0001987,2]
[360337918,1746751840568,-917.54394476,0.0001987,2]
[360337919,1746751840577,-917.54394476,0.0001987,2]
[360337920,1746751840586,-917.54394476,0.0001987,2]
[360337921,1746751840596,-917.54394476,0.0001987,2]
[360337922,1746751840605,-400.0,0.00019871,2]
[360337923,1746751840614,-503.74333403,0.00019871,2]
[360337924,1746751840624,-400.0,0.00019871,2]
[360337925,1746751840634,-502.05080481,0.00019871,2]
[360337926,1746751840644,-507.04065384,0.00019871,2]
[360337927,1746751840654,-501.66080365,0.00019871,2]
[360337928,1746751840663,-400.0,0.00019871,2]
[360337929,1746751840673,-400.0,0.00019871,2]
[360337930,1746751840682,-506.85097176,0.00019871,2]
[360337931,1746751840692,-502.26988359,0.00019871,2]
[360337932,1746751840702,-400.0,0.00019871,2]
[360337933,1746751840711,-400.0,0.00019871,2]
[360337934,1746751840720,-537.26890825,0.00019871,2]
[360337935,1746751840730,-400.0,0.00019871,2]
[360337936,1746751840740,-543.25476103,0.00019871,2]
[360337937,1746751840749,-400.0,0.00019871,2]
[360337938,1746751840759,-653.02,0.00019871,2]
[360337939,1746751840768,-400.0,0.00019871,2]
[360337940,1746751840778,-524.11252254,0.00019871,2]
[360337941,1746751840789,-500.0,0.00019871,2]
[360337942,1746751840799,-400.0,0.00019871,2]
[360337943,1746751840808,-400.0,0.00019871,2]
[360337944,1746751840818,-509.73003365,0.00019871,2]
[360337945,1746751840828,-1007.63,0.00019871,2]
[360337946,1746751840837,-450.0,0.00019871,2]
[360337947,1746751840847,-431.18,0.00019871,2]
[360337948,1746751840856,-508.03863015,0.00019871,2]
[360337949,1746751840865,-772.89,0.00019871,2]
[360337950,1746751840875,-400.0,0.00019871,2]
[360337951,1746751840884,-538.50665305,0.00019871,2]
[360337952,1746751840894,-1092.8,0.00019871,2]
[360337953,1746751840903,-400.0,0.00019871,2]
[360337954,1746751840912,-503.05517386,0.00019871,2]
[360337955,1746751840923,-512.06564032,0.00019871,2]
[360337956,1746751840932,-903.68,0.00019871,2]
[360337957,1746751840941,-501.258108,0.00019871,2]
[360337958,1746751840951,-400.0,0.00019871,2]
[360337959,1746751840960,-1035.24,0.00019871,2]
[360337960,1746751840969,-400.0,0.00019871,2]
[360337961,1746751840979,-400.0,0.00019871,2]
[360337962,1746751840988,-450.0,0.00019871,2]
[360337963,1746751840997,-502.46336438,0.00019871,2]
[360337964,1746751841007,-569.71,0.00019871,2]
[360337965,1746751841016,-523.37146567,0.00019871,2]
[360337966,1746751841026,-911.99,0.00019871,2]
[360337967,1746751841035,-321.94458042,0.00019871,2]
[360337968,1746751841044,-787.67,0.00019871,2]
[360337969,1746751841053,-160.03342752,0.00019871,2]
[360337970,1746751841062,-400.0,0.00019871,2]
[360337971,1746751841072,-1093.17,0.00019871,2]
[360337972,1746751841081,-400.0,0.00019871,2]
[360337973,1746751841090,-1714.41,0.00019871,2]
[360337974,1746751841099,-400.0,0.00019871,2]
[360337975,1746751841108,-450.0,0.00019871,2]
[360337976,1746751841118,-849.81,0.00019871,2]
[360337977,1746751841127,-1454.28,0.00019871,2]
[360337978,1746751841137,-340.12942915,0.00019871,2]
[360337979,1746751841146,-746.05,0.00019871,2]
[360337980,1746751841155,-825.09,0.00019871,2]
[360337981,1746751841164,-256.34320295,0.00019871,2]
[360337982,1746751841174,-637.33,0.00019871,2]
[360337983,1746751841185,-450.0,0.00019871,2]
[360337984,1746751841194,-400.0,0.00019871,2]
[360337985,1746751841203,-400.0,0.00019871,2]
[360337986,1746751841213,-621.3,0.00019871,2]
[360337987,1746751841222,-400.0,0.00019871,2]
[360337988,1746751841231,-1418.93,0.00019871,2]
[360337989,1746751841241,-469.12,0.00019871,2]
[360337990,1746751841251,-400.0,0.00019871,2]
[360337991,1746751841261,-676.95,0.00019871,2]
[360337992,1746751841271,-1050.68,0.00019871,2]
[360337993,1746751841281,-400.0,0.00019871,2]
[360337994,1746751841291,-400.0,0.00019871,2]
[360337995,1746751841300,-520.16,0.00019871,2]
[360337996,1746751841309,-464.4854791,0.00019871,2]
[360337997,1746751841319,-1928.95,0.00019871,2]
[360337998,1746751841328,-539.23963948,0.00019871,2]
[360337999,1746751841337,-1060.41,0.00019871,2]
[360338000,1746751841347,-660.9,0.00019871,2]
[360338001,1746751841356,-500.0,0.00019871,2]
[360338002,1746751841365,-295.56584543,0.00019871,2]
[360338003,1746751841374,-2010.72,0.00019871,2]
[360338004,1746751841386,-1036.54,0.00019871,2]
[360338005,1746751841395,-311.02614868,0.00019871,2]
[360338006,1746751841404,-400.0,0.00019871,2]
[360338007,1746751841413,-400.0,0.00019871,2]
[360338008,1746751841424,-643.8,0.00019871,2]
[360338009,1746751841434,-803.59,0.00019871,2]
[360338010,1746751841443,-400.0,0.00019871,2]
[360338011,1746751841452,-400.0,0.00019871,2]
[360338012,1746751841464,-708.21,0.00019871,2]
[360338013,1746751841473,-400.0,0.00019871,2]
[360338014,1746751841483,-3268.49,0.00019871,2]
[360338015,1746751841492,-674.9,0.00019871,2]
[360338016,1746751841502,-400.0,0.00019871,2]
[360338017,1746751841511,-400.0,0.00019871,2]
[360338018,1746751841520,-400.0,0.00019871,2]
[360338019,1746751841529,-400.0,0.00019871,2]
[360338020,1746751841538,-782.3,0.00019871,2]
[360338021,1746751841549,-703.46,0.00019871,2]
[360338022,1746751841559,-400.0,0.00019871,2]
[360338023,1746751841568,-1245.64,0.00019871,2]
[360338024,1746751841578,-400.0,0.00019871,2]
[360338025,1746751841588,-450.0,0.00019871,2]
[360338026,1746751841598,-400.0,0.00019871,2]
[360338027,1746751841607,-400.0,0.00019871,2]
[360338028,1746751841617,-245.51785886,0.00019871,2]
[360338029,1746751841627,-1700.63,0.00019871,2]
[360338030,1746751841636,-666.23,0.00019871,2]
[360338031,1746751841645,-400.0,0.00019871,2]
[360338032,1746751841654,-400.0,0.00019871,2]
[360338033,1746751841664,-500.0,0.00019871,2]
[360338034,1746751841673,-2488.42,0.00019871,2]
[360338035,1746751841682,-203.45035829,0.00019871,2]
[360338036,1746751841692,-462.48,0.00019871,2]
[360338037,1746751841702,-400.0,0.00019871,2]
[360338038,1746751841711,-400.0,0.00019871,2]
[360338039,1746751841721,-195.28955756,0.00019871,2]
[360338040,1746751841730,-235.65297099,0.00019871,2]
[360338041,1746751841739,-400.0,0.00019871,2]
[360338042,1746751841748,-400.0,0.00019871,2]
[360338043,1746751841758,-400.0,0.00019871,2]
[360338044,1746751841767,-422.08,0.00019871,2]
[360338045,1746751841776,-400.0,0.00019871,2]
[360338046,1746751841786,-400.0,0.00019871,2]
[360338047,1746751841795,-400.0,0.00019871,2]
[360338048,1746751841804,-400.0,0.00019871,2]
[360338049,1746751841813,-345.42032689,0.00019871,2]
[360338050,1746751841822,-400.0,0.00019871,2]
[360338051,1746751841832,-1040.57,0.00019871,2]
[360338052,1746751841841,-400.0,0.00019871,2]
[360338053,1746751841850,-400.0,0.00019871,2]
[360338054,1746751841859,-400.0,0.00019871,2]
[360338055,1746751841869,-450.0,0.00019871,2]
[360338056,1746751841878,-1803.1,0.00019871,2]
[360338057,1746751841888,-545.15963195,0.00019871,2]
[360338058,1746751841897,-523.45,0.00019871,2]
[360338059,1746751841906,-400.0,0.00019871,2]
[360338060,1746751841915,-400.0,0.00019871,2]